bitfinex-derivatives/quotes_ETHF0:USTF0_20260203
["timestamp","ask_amount","ask_price","bid_price","bid_amount"]
[1770143734317,6.54613958,2144.9,2143.8,40.8]
[1770143734522,0.23337,2144.8,2143.8,40.8]
[1770143734724,0.23339,2144.6,2143.5,3.731]
[1770143735324,0.2334,2144.5,2143.5,3.731]
[1770143735524,6.54618958,2144.5,2143.5,3.731]
[1770143736021,6.54619958,2144.4,2143.4,6.39292769]
[1770143736222,0.23342,2144.3,2143.4,0.00449185]
[1770143736821,6.31278958,2144.7,2143.4,6.39292769]
[1770143737019,6.31278958,2144.7,2143.4,2.39292769]
[1770143737220,6.54617958,2144.6,2143.4,2.39292769]
[1770143737426,6.54617958,2144.6,2142.7,0.23359]
[1770143738025,6.54617958,2144.6,2142.7,0.2391407]
[1770143738520,3.732,2145.0,2142.7,0.0055507]
[1770143738521,6.54619958,2144.4,2142.7,0.0055507]
[1770143739122,6.54614958,2144.8,2143.0,6.38843584]
[1770143739722,6.31278958,2144.8,2143.0,6.38843584]
[1770143740021,6.54617958,2144.6,2143.0,6.38843584]
[1770143740227,0.23343,2144.2,2143.0,6.38843584]
[1770143740930,6.54621958,2144.2,2143.0,6.38843584]
[1770143741224,6.31278958,2144.5,2143.0,6.38843584]
[1770143741620,6.54620958,2144.3,2143.0,6.38843584]
[1770143741819,6.31278958,2144.3,2143.0,6.38843584]
[1770143742029,6.54618958,2144.5,2143.0,6.38843584]
[1770143742228,6.54618958,2144.5,2143.2,6.38843584]
[1770143743127,6.31278958,2144.2,2143.2,6.38843584]
[1770143743327,4.44566442,2144.1,2142.8,6.38843584]
[1770143743523,0.23349,2143.6,2142.7,0.0055507]
[1770143743735,0.00569329,2143.6,2142.7,6.39398654]
[1770143745330,6.31278958,2143.5,2142.7,0.0055507]
[1770143745530,6.54632958,2143.2,2142.7,0.0055507]
[1770143746125,6.54634958,2143.0,2142.0,6.38843584]
[1770143746327,6.54635958,2142.9,2141.5,6.38843584]
[1770143746725,6.31278958,2142.7,2141.5,6.38843584]
[1770143746932,6.31278958,2142.7,2140.2,12.94095563]
[1770143746933,0.23369,2141.8,2140.5,6.38843584]
[1770143747228,6.31278958,2142.1,2140.5,6.38843584]
[1770143747431,6.3164255,2142.1,2140.5,6.39396878]
[1770143747627,0.00363592,2142.1,2140.5,6.39396878]
[1770143748331,6.3164255,2142.1,2140.5,6.39396878]
[1770143749537,0.00363592,2142.1,2140.5,6.39396878]
[1770143750134,0.00363592,2142.1,2140.7,6.38843584]
[1770143750632,0.00363592,2142.1,2141.0,6.54866174]
[1770143750933,6.89049346,2143.3,2141.4,3.42284034]
[1770143751227,6.89049346,2143.3,2141.5,6.54866174]
[1770143751428,6.89049346,2143.7,2142.0,6.78233174]
[1770143751625,6.89049346,2143.7,2142.2,6.54866174]
[1770143751826,6.89500412,2143.7,2142.2,6.55410715]
[1770143752034,0.00451066,2143.7,2142.4,6.54866174]
[1770143753331,6.89049346,2143.4,2142.3,40.8]
[1770143753531,0.23354,2143.2,2142.3,40.8]
[1770143753938,7.12819323,2143.1,2142.2,0.00544541]
[1770143755036,6.89464323,2142.8,2142.2,0.00544541]
[1770143755334,6.89464323,2142.6,2141.2,6.70957811]
[1770143755532,0.23362,2142.5,2141.2,6.70957811]
[1770143755731,0.23362,2142.5,2141.4,6.70957811]
[1770143755934,7.12826323,2142.5,2141.4,6.70957811]
[1770143756134,7.12826323,2142.5,2141.4,6.71410669]
[1770143756631,6.89464323,2142.9,2141.4,6.71410669]
[1770143757536,7.12821323,2142.9,2141.4,6.71410669]
[1770143759736,6.89464323,2142.9,2141.4,6.71410669]
[1770143760140,7.12818323,2143.2,2141.4,6.71410669]
[1770143761041,6.89464323,2143.5,2142.0,6.70957811]
[1770143761343,6.89464323,2143.0,2141.8,6.70957811]
[1770143761542,6.89464323,2142.8,2141.9,40.8]
[1770143761842,7.12817323,2143.3,2141.8,6.70957811]
[1770143762043,6.89464323,2143.1,2141.5,6.70957811]
[1770143762244,6.89464323,2142.7,2141.6,40.8]
[1770143762444,7.12825323,2142.6,2141.5,6.70957811]
[1770143762837,7.12825323,2142.5,2141.4,0.00452858]
[1770143763037,6.89464323,2142.2,2141.4,0.00452858]
[1770143763237,0.00556516,2142.2,2141.4,0.00452858]
[1770143763448,0.00556516,2142.2,2141.4,6.71410669]
[1770143764846,0.00556516,2142.2,2141.4,0.00452858]
[1770143765848,0.00556516,2142.2,2141.4,6.71410669]
[1770143766140,6.89464323,2143.2,2141.6,6.70957811]
[1770143766338,0.23351,2143.5,2141.8,6.70957811]
[1770143766537,3.96945,2144.0,2142.0,6.70957811]
[1770143766738,6.89464323,2143.5,2142.2,6.70957811]
[1770143766947,6.89464323,2143.2,2141.9,11.38857811]
[1770143767145,0.00391184,2143.2,2142.0,6.70957811]
[1770143767741,6.89855507,2143.2,2142.0,6.70957811]
[1770143767946,7.13209507,2143.2,2142.0,6.70957811]
[1770143768149,0.23355,2143.1,2141.7,6.70957811]
[1770143768547,6.89464323,2143.1,2141.7,6.70957811]
[1770143768753,7.12825323,2142.6,2141.4,6.71410669]
[1770143769452,7.12829323,2142.2,2141.4,0.00452858]
[1770143769645,6.89464323,2142.0,2141.4,0.00452858]
[1770143771054,6.89464323,2142.4,2141.4,0.00452858]
[1770143771348,41.00072456,2142.9,2141.4,6.71410669]
[1770143771349,6.89464323,2142.7,2141.4,6.71410669]
[1770143772259,7.12824323,2142.7,2141.4,6.71410669]
[1770143772455,6.89464323,2142.5,2141.4,6.71410669]
[1770143773759,7.12825323,2142.5,2141.4,6.71410669]
[1770143774554,6.89464323,2142.3,2141.4,0.00452858]
[1770143775059,6.89464323,2142.6,2141.4,6.71410669]
[1770143776354,6.89464323,2142.3,2141.4,0.00452858]
[1770143776959,2.56524689,2142.7,2140.9,40.8]
[1770143776960,6.89464323,2141.9,2140.9,40.8]
[1770143777560,6.89464323,2142.2,2141.0,6.70957811]
[1770143779062,7.12831323,2142.0,2141.0,0.00335833]
[1770143779264,7.12832323,2141.9,2141.0,0.00335833]
[1770143779957,0.23368,2141.9,2141.0,6.71293644]
[1770143780160,7.12829323,2142.2,2141.0,6.71293644]
[1770143780366,7.12832323,2141.9,2141.0,0.00335833]
[1770143781268,6.89464323,2141.9,2141.0,0.00335833]
[1770143781562,6.84281888,2141.5,2140.4,6.40357149]
[1770143781864,6.60908888,2141.8,2140.6,6.40357149]
[1770143782562,6.84279888,2141.6,2140.6,0.00468703]
[1770143782767,6.60908888,2141.4,2140.6,0.00468703]
[1770143783362,6.84281888,2141.4,2140.6,0.00468703]
[1770143783965,0.00498262,2141.8,2140.8,6.40357149]
[1770143784161,0.00498262,2141.8,2141.0,6.40357149]
[1770143784665,6.6140715,2141.8,2140.8,4.961]
[1770143784968,6.6140715,2141.8,2140.6,6.40825852]
[1770143785462,6.8477615,2141.8,2140.6,6.40825852]
[1770143785867,6.6140715,2141.8,2140.6,6.40825852]
[1770143786465,0.00498262,2141.8,2140.6,6.40825852]
[1770143786966,0.00498262,2141.8,2140.8,6.40357149]
[1770143789269,6.84271888,2142.4,2140.8,6.40357149]
[1770143789473,6.60908888,2142.2,2140.8,6.40357149]
[1770143789670,6.60908888,2143.1,2141.5,6.40357149]
[1770143789864,6.60908888,2143.1,2141.7,6.40357149]
[1770143790065,6.84265888,2142.9,2141.8,45.779]
[1770143790370,6.84814089,2142.9,2141.8,40.8]
[1770143790872,6.84269888,2142.6,2141.5,4.984]
[1770143791068,6.84269888,2142.6,2141.4,11.38757149]
[1770143791272,6.60908888,2142.3,2141.0,6.40357149]
[1770143791573,6.60908888,2141.7,2140.7,6.40357149]
[1770143791774,6.84280888,2141.6,2140.6,40.80468703]
[1770143792075,6.84283888,2141.2,2140.6,0.00468703]
[1770143792271,6.84632742,2141.2,2140.6,0.00468703]
[1770143792474,6.61257742,2141.2,2140.0,6.40357149]
[1770143793576,6.61257742,2141.2,2140.0,6.40898235]
[1770143794575,6.61257742,2141.2,2140.0,11.40898235]
[1770143795172,6.61257742,2141.2,2140.0,11.41598235]
[1770143796073,6.61257742,2141.2,2140.0,0.00541086]
[1770143796269,0.23381,2140.7,2139.8,0.0008]
[1770143796466,6.60908888,2140.6,2139.9,0.00541086]
[1770143796872,6.60908888,2140.4,2139.2,6.40357149]
[1770143797074,0.23384,2140.5,2137.8,6.91009144]
[1770143797075,6.60908888,2140.2,2138.6,6.40357149]
[1770143797268,6.60908888,2139.9,2138.6,6.40945133]
[1770143797468,6.60908888,2139.9,2138.7,6.40898235]
[1770143797772,0.23394,2139.5,2138.6,0.0112907]
[1770143797968,0.23394,2139.5,2137.9,6.40357149]
[1770143797969,6.60908888,2139.2,2137.9,6.40357149]
[1770143798276,6.60908888,2139.2,2137.9,6.40898235]
[1770143798474,6.60908888,2139.2,2138.0,0.00541086]
[1770143798673,0.0057069,2139.5,2138.0,6.40898235]
[1770143798877,6.61479578,2139.5,2138.0,6.40898235]
[1770143799077,6.61479578,2139.5,2138.0,6.41444942]
[1770143799678,6.61479578,2139.5,2138.1,6.40357149]
[1770143800277,6.61479578,2139.5,2138.2,6.40898235]
[1770143800680,6.61479578,2139.5,2138.2,0.00541086]
[1770143800875,6.84873578,2139.5,2138.2,0.00541086]
[1770143801381,6.60908888,2139.3,2138.2,0.00541086]
[1770143801577,6.60908888,2138.7,2137.1,6.40357149]
[1770143801778,6.60908888,2138.5,2136.3,6.40357149]
[1770143801979,6.60908888,2138.5,2136.5,6.40357149]
[1770143802178,6.60908888,2138.5,2136.7,6.40357149]
[1770143802574,6.60908888,2138.5,2136.7,6.40894929]
[1770143803079,6.84315888,2138.3,2136.7,6.40894929]
[1770143803680,6.84315888,2138.3,2136.8,6.40357149]
[1770143805182,3.24,2138.5,2136.7,0.0053778]
[1770143805183,6.60908888,2137.9,2136.7,0.0053778]
[1770143805378,6.8488626,2137.9,2136.7,0.0053778]
[1770143805580,7.23047185,2137.9,2136.7,0.0053778]
[1770143806583,6.60908888,2137.7,2136.7,0.0053778]
[1770143806782,6.84322888,2137.7,2136.7,0.0053778]
[1770143807678,6.60908888,2137.5,2136.1,6.40357149]
[1770143808075,6.60908888,2137.5,2136.1,40.8]
[1770143808276,6.60908888,2137.5,2136.2,6.40357149]
[1770143808480,6.84324888,2137.5,2136.2,6.40357149]
[1770143808684,6.84324888,2137.5,2136.2,6.40876643]
[1770143810080,6.84326888,2137.3,2136.2,0.00519494]
[1770143810986,6.84326888,2137.3,2136.2,6.6934254]
[1770143811177,6.84326888,2137.3,2136.2,0.00519494]
[1770143812177,6.84326888,2137.3,2136.2,6.6934254]
[1770143812382,6.60908888,2137.3,2136.2,6.6934254]
[1770143813183,3.97715,2137.6,2136.2,6.6934254]
[1770143813779,6.30330626,2137.5,2136.2,6.6934254]
[1770143814181,6.53751626,2137.1,2136.2,0.00519494]
[1770143814381,6.30330626,2136.9,2136.2,0.00519494]
[1770143815081,6.53755626,2136.7,2136.2,4.94e-06]
[1770143815388,6.30330626,2136.0,2134.8,6.68122121]
[1770143815590,6.30330626,2136.5,2134.8,6.68122121]
[1770143815885,6.30330626,2136.5,2135.0,6.68122121]
[1770143816086,3.744,2136.6,2135.0,6.68122121]
[1770143816282,0.00502303,2136.6,2135.2,6.68122121]
[1770143816786,6.30832929,2136.6,2135.2,6.68122121]
[1770143817086,6.54258929,2136.6,2135.2,6.68122121]
[1770143817685,0.23428,2136.4,2135.0,0.00519543]
[1770143817987,6.53759626,2136.3,2135.0,0.00519543]
[1770143818486,6.30330626,2135.4,2133.1,4.999]
[1770143818783,6.30330626,2135.4,2133.6,0.23459]
[1770143818988,6.30330626,2135.4,2133.8,0.23456]
[1770143819188,6.30330626,2135.4,2133.7,40.8]
[1770143819386,6.30330626,2135.4,2133.7,40.80500667]
[1770143819588,6.30330626,2135.4,2133.8,3.745]
[1770143820285,6.30330626,2135.4,2133.7,40.80500667]
[1770143820585,3.745,2136.1,2133.9,6.68122121]
[1770143820586,6.30330626,2136.0,2133.9,6.68122121]
[1770143820884,6.30330626,2136.0,2134.1,6.91575121]
[1770143821084,6.30330626,2135.8,2134.2,11.68822121]
[1770143821285,6.30330626,2135.8,2134.3,6.68122121]
[1770143821591,6.30330626,2136.5,2134.7,6.68122121]
[1770143822085,0.00502303,2136.6,2135.1,6.68122121]
[1770143822385,6.30330626,2137.2,2135.5,6.68122121]
[1770143822785,6.30330626,2136.5,2135.1,14.78222121]
[1770143822989,6.30330626,2136.5,2135.2,6.68122121]
[1770143823180,6.30330626,2137.1,2135.4,6.68122121]
[1770143823385,6.30330626,2137.4,2135.4,6.91560121]
[1770143823585,6.30330626,2137.4,2135.4,0.23438]
[1770143823780,6.53747626,2137.4,2135.6,6.68122121]
[1770143823985,6.53751626,2137.1,2135.6,6.68122121]
[1770143824187,6.54247544,2137.1,2135.6,6.68122121]
[1770143824482,6.54247544,2137.1,2135.7,40.8]
[1770143824686,41.18247767,2138.5,2135.7,40.8]
[1770143824687,6.30330626,2137.4,2135.8,6.68122121]
[1770143824887,6.30330626,2137.9,2136.0,6.68122121]
[1770143825092,6.30330626,2137.5,2136.0,6.68122121]
[1770143825487,6.53748626,2137.3,2135.7,47.45038545]
[1770143825687,6.54273534,2137.3,2135.7,47.45038545]
[1770143825887,6.30330626,2137.0,2135.3,6.65038545]
[1770143826591,6.30330626,2137.0,2135.5,6.65038545]
[1770143827390,6.30330626,2137.0,2135.6,6.63657811]
[1770143827590,0.00524908,2137.3,2135.8,6.63657811]
[1770143827793,0.00524908,2137.3,2136.0,6.63657811]
[1770143827986,0.00524908,2137.3,2136.0,6.87089811]
[1770143828794,6.53744626,2137.8,2136.2,6.63657811]
[1770143829196,6.30330626,2137.6,2136.2,6.63657811]
[1770143829396,6.30330626,2137.9,2136.3,6.68122121]
[1770143829894,6.30330626,2137.6,2136.3,6.68122121]
[1770143830095,6.30330626,2137.6,2135.9,6.68122121]
[1770143830493,6.30330626,2137.6,2136.0,6.68122121]
[1770143831094,6.30330626,2137.4,2136.0,6.68122121]
[1770143831597,0.23416,2137.5,2135.2,0.38384609]
[1770143831598,6.30330626,2137.2,2135.5,6.68122121]
[1770143831798,6.30330626,2137.2,2135.8,6.68122121]
[1770143833397,6.53750626,2137.2,2135.8,6.68122121]
[1770143833592,6.53750626,2137.2,2135.2,0.00403497]
[1770143833593,6.30330626,2136.4,2135.2,0.00403497]
[1770143833791,0.00474451,2136.4,2135.2,6.68525618]
[1770143834395,6.30805077,2136.4,2135.2,6.68525618]
[1770143834697,6.30805077,2136.4,2135.2,0.00403497]
[1770143834698,6.53760626,2136.2,2135.2,0.00403497]
[1770143835195,6.30330626,2135.8,2135.2,0.00403497]
[1770143835397,6.53765626,2135.8,2135.2,0.00403497]
[1770143835602,6.30330626,2135.8,2135.2,0.00403497]
[1770143835899,6.53765626,2135.8,2135.2,0.00403497]
[1770143836097,6.53765626,2135.8,2134.2,9.92922121]
[1770143836098,6.53765626,2135.8,2134.2,6.68122121]
[1770143836300,6.53768626,2135.5,2133.8,6.91578121]
[1770143836495,6.30330626,2134.9,2133.5,6.68122121]
[1770143836691,6.30330626,2134.4,2133.1,6.68122121]
[1770143837092,6.30894423,2134.4,2133.1,0.00571224]
[1770143837499,6.30330626,2134.3,2132.3,6.68122121]
[1770143837698,6.53783626,2134.1,2132.3,6.68122121]
[1770143838201,6.30330626,2133.9,2131.9,6.68122121]
[1770143838593,6.53785626,2133.9,2131.9,6.68523527]
[1770143839897,6.30330626,2133.7,2131.9,6.68523527]
[1770143840102,6.30330626,2133.7,2131.9,6.92000527]
[1770143840402,6.30330626,2133.7,2132.1,6.68122121]
[1770143840600,6.53788626,2133.7,2132.1,6.68122121]
[1770143840897,6.30330626,2133.7,2132.1,6.68122121]
[1770143841103,7.01596238,2134.3,2132.1,6.68122121]
[1770143841500,6.78145238,2134.1,2132.1,6.68122121]
[1770143841700,6.78145238,2133.7,2132.2,4.766]
[1770143842104,7.01603238,2133.7,2132.1,6.68122121]
[1770143842897,6.78145238,2133.7,2132.1,6.68122121]
[1770143844001,6.78145238,2133.5,2132.1,6.68122121]
[1770143844413,6.78145238,2133.9,2132.1,6.91597121]
[1770143844608,6.78145238,2134.3,2132.7,6.41843538]
[1770143844908,6.78145238,2134.3,2132.9,6.41843538]
[1770143845104,0.00563797,2134.4,2133.4,6.41843538]
[1770143845405,6.78145238,2134.7,2133.4,6.421912]
[1770143846410,6.78738546,2134.7,2133.4,6.421912]
[1770143848808,7.01593238,2134.6,2133.4,0.00347662]
[1770143850104,6.78145238,2134.4,2133.4,0.00347662]
[1770143850707,6.78738546,2134.7,2133.4,6.421912]
[1770143851110,6.78738546,2134.7,2133.4,6.656512]
[1770143854210,7.01594238,2134.6,2133.4,6.421912]
[1770143854413,6.78145238,2134.6,2133.4,6.421912]
[1770143855014,6.78145238,2134.6,2133.4,0.00347662]
[1770143855310,6.78145238,2134.3,2133.4,0.00347662]
[1770143856018,6.78145238,2134.1,2133.4,0.00347662]
[1770143856618,6.78145238,2134.4,2133.4,0.00347662]
[1770143858514,7.01595238,2134.4,2133.4,0.00347662]
[1770143859114,6.78145238,2134.4,2133.4,0.00347662]
[1770143860318,0.00593308,2134.7,2133.4,6.421912]
[1770143860519,0.00593308,2134.7,2133.7,6.41843538]
[1770143860724,6.78738546,2134.7,2133.7,11.38343538]
[1770143861225,0.00593308,2134.7,2134.0,6.65297538]
[1770143861424,6.78145238,2135.2,2134.0,6.65297538]
[1770143862319,6.78509939,2135.2,2134.0,6.65297538]
[1770143863826,0.00364701,2135.2,2134.2,6.41843538]
[1770143864823,0.23435,2135.8,2134.4,6.41843538]
[1770143865025,6.78145238,2136.2,2134.9,3.30488714]
[1770143865324,38.74689536,2137.2,2134.2,6.82725863]
[1770143865325,6.78145238,2136.7,2135.5,6.41843538]
[1770143865525,6.78145238,2137.5,2136.0,6.41843538]
[1770143865725,6.78145238,2137.5,2136.2,6.65273538]
[1770143865927,0.00347706,2137.5,2136.5,6.41843538]
[1770143866131,6.78492944,2137.5,2136.2,0.00567571]
[1770143866432,6.78145238,2137.0,2136.2,0.00567571]
[1770143866637,7.01567238,2137.0,2135.4,6.41843538]
[1770143866832,6.78145238,2137.4,2135.4,6.41843538]
[1770143867029,0.00347706,2137.5,2136.2,9.72332252]
[1770143867230,0.00347706,2137.5,2135.5,5.08055508]
[1770143867231,6.78145238,2137.4,2135.9,6.41843538]
[1770143867530,6.78145238,2137.4,2136.1,6.41843538]
[1770143868129,6.78145238,2137.4,2136.0,45.77]
[1770143868336,6.78145238,2137.4,2136.0,4.97]
[1770143868526,6.78145238,2137.2,2136.0,4.97]
[1770143869129,6.78145238,2137.2,2135.9,0.00480535]
[1770143869329,6.78145238,2137.2,2135.9,11.40124073]
[1770143869735,6.78492944,2137.5,2136.0,6.41843538]
[1770143870335,6.78492944,2137.5,2135.9,45.78280535]
[1770143870336,6.78145238,2137.8,2136.4,6.41843538]
[1770143870536,7.01558238,2137.8,2136.1,6.37964956]
[1770143870735,6.69017205,2137.5,2136.1,6.37964956]
[1770143870939,6.92433205,2137.5,2136.0,4.985]
[1770143871339,6.92433205,2137.5,2135.9,44.55280535]
[1770143871340,6.69017205,2137.0,2135.9,0.00480535]
[1770143873938,6.93330898,2136.7,2135.2,9.60459108]
[1770143874141,6.93330898,2136.7,2135.1,3.748]
[1770143874445,6.93330898,2136.5,2135.1,3.748]
[1770143874639,6.93330898,2136.2,2134.7,1.2059607]
[1770143874841,6.93330898,2135.8,2134.0,6.85659108]
[1770143875142,6.93330898,2135.4,2134.0,0.00435091]
[1770143875339,7.30901013,2135.4,2134.0,0.00435091]
[1770143875534,6.93330898,2135.2,2134.0,0.00435091]
[1770143876241,6.93330898,2135.0,2132.6,6.85659108]
[1770143876543,6.93330898,2134.8,2132.6,6.85659108]
[1770143876745,6.93330898,2134.6,2132.6,6.85659108]
[1770143877143,6.93330898,2134.6,2132.6,6.86073396]
[1770143877348,6.93330898,2134.4,2132.6,6.86073396]
[1770143877643,6.93330898,2134.2,2132.6,0.00414288]
[1770143877849,6.93728265,2134.2,2132.6,6.86073396]
[1770143878045,7.17180265,2134.2,2132.6,0.00414288]
[1770143879549,7.17180265,2134.2,2132.6,6.86073396]
[1770143880150,6.93728265,2134.2,2132.6,0.00414288]
[1770143880347,6.93330898,2133.9,2132.6,6.86073396]
[1770143880650,0.00397367,2134.2,2132.9,6.85659108]
[1770143880945,6.93330898,2134.8,2133.4,7.09119108]
[1770143881150,6.93330898,2134.8,2133.4,6.85659108]
[1770143881349,6.93330898,2134.1,2132.8,6.85659108]
[1770143882050,6.93802638,2134.1,2132.8,7.09126108]
[1770143882451,0.0047174,2134.1,2132.8,7.09126108]
[1770143882645,0.0047174,2134.1,2132.8,10.39614822]
[1770143882845,0.0047174,2134.1,2132.9,7.09125108]
[1770143883752,0.0047174,2134.1,2133.1,6.85659108]
[1770143884052,0.0047174,2134.1,2133.3,6.85659108]
[1770143884453,0.0047174,2134.1,2133.2,4.981]
[1770143884854,6.93330898,2135.0,2133.8,7.09115108]
[1770143885046,6.93330898,2135.0,2133.8,6.85659108]
[1770143885953,6.93876164,2135.0,2133.8,6.85659108]
[1770143886249,0.00545266,2135.0,2133.8,6.85659108]
[1770143886450,0.00545266,2135.0,2134.3,7.09110108]
[1770143886654,6.93330898,2135.3,2134.3,7.09110108]
[1770143886655,6.93330898,2135.7,2134.5,7.09107108]
[1770143886855,5.71720432,2135.7,2134.7,7.09105108]
[1770143887056,0.23428,2136.4,2134.8,6.85659108]
[1770143887562,0.23432,2136.1,2134.8,0.00569415]
[1770143887749,0.00432945,2136.4,2134.8,0.00569415]
[1770143887750,0.00432945,2136.4,2134.8,6.86228523]
[1770143888056,0.00432945,2136.4,2135.4,7.09097108]
[1770143888354,4.61453827,2138.0,2135.1,6.85659108]
[1770143888355,0.38577744,2137.6,2135.1,6.85659108]
[1770143888561,5.88234598,2137.8,2135.1,6.85659108]
[1770143888762,0.37668212,2137.8,2135.6,6.85659108]
[1770143888961,6.93330898,2137.1,2135.3,6.85659108]
[1770143889161,6.93753226,2137.1,2135.3,6.85659108]
[1770143889361,6.93330898,2136.6,2134.9,47.65659108]
[1770143889660,7.16756898,2136.6,2134.9,6.85659108]
[1770143889860,6.93330898,2136.3,2134.2,6.85659108]
[1770143890156,3.30488714,2136.8,2134.2,40.8]
[1770143890363,6.93330898,2135.9,2134.5,6.85659108]
[1770143890662,6.93330898,2136.3,2134.9,3.749]
[1770143891161,7.16759898,2136.3,2134.9,3.749]
[1770143892655,6.93330898,2136.1,2134.3,0.23451]
[1770143892860,7.16761898,2136.1,2134.2,6.85659108]
[1770143893060,6.93330898,2135.7,2134.2,6.85659108]
[1770143893263,6.93330898,2135.7,2134.1,4.032]
[1770143893562,7.16766898,2135.7,2134.1,4.032]
[1770143893756,6.93330898,2135.7,2134.1,4.032]
[1770143893956,3.749,2136.0,2132.6,4.687]
[1770143893957,0.23445,2134.9,2133.4,6.85659108]
[1770143894163,6.93330898,2134.8,2133.4,0.00390286]
[1770143894368,7.16776898,2134.8,2133.4,0.00390286]
[1770143894663,6.93330898,2134.8,2133.4,0.00390286]
[1770143896762,6.93330898,2134.8,2133.4,6.86049394]
[1770143896958,6.93330898,2134.8,2132.5,6.85659108]
[1770143897158,6.93330898,2134.4,2132.5,7.09129108]
[1770143897360,6.93330898,2134.8,2133.4,6.85659108]
[1770143897560,0.00419182,2134.9,2133.8,6.85659108]
[1770143898165,0.00419182,2134.9,2133.8,6.86013747]
[1770143898965,6.9375008,2134.9,2133.8,6.86013747]
[1770143899162,7.16779898,2134.5,2132.9,6.85659108]
[1770143899370,7.16783898,2134.2,2132.5,6.85659108]
[1770143899558,6.93330898,2134.2,2132.5,6.85659108]
[1770143899763,6.93330898,2134.2,2132.6,6.85659108]
[1770143900365,6.93330898,2134.2,2132.6,6.86012975]
[1770143901771,6.93330898,2134.2,2132.8,6.6730113]
[1770143903274,6.93330898,2134.2,2133.0,6.6730113]
[1770143903672,6.3604676,2134.8,2133.3,6.6730113]
[1770143903967,6.3604676,2134.5,2132.8,6.6730113]
[1770143904170,6.3604676,2134.5,2133.0,6.6730113]
[1770143904569,6.5949576,2134.5,2133.0,6.6730113]
[1770143904772,6.5949576,2134.5,2133.0,15.3790113]
[1770143905268,6.3604676,2134.5,2133.1,6.6730113]
[1770143905572,6.3604676,2134.5,2133.3,6.6730113]
[1770143905972,6.3604676,2134.8,2133.3,6.6730113]
[1770143906374,6.3604676,2134.8,2133.5,6.6730113]
[1770143906667,6.3604676,2134.8,2133.7,6.9075813]
[1770143906874,6.3604676,2134.8,2133.7,6.6730113]
[1770143907070,6.3604676,2134.8,2133.8,40.8]
[1770143907270,6.3604676,2134.8,2133.5,0.23459]
[1770143907470,6.3604676,2134.8,2133.5,6.9076013]
[1770143907775,6.36465942,2134.9,2133.8,0.23456]
[1770143907970,6.36465942,2134.9,2133.6,40.8]
[1770143908276,0.00419182,2134.9,2133.7,0.23457]
[1770143908473,6.36465942,2134.9,2133.7,0.23457]
[1770143908674,6.36465942,2134.9,2133.6,2.749]
[1770143908876,6.36465942,2134.9,2133.7,6.9075913]
[1770143909174,0.00419182,2134.9,2133.9,6.9075613]
[1770143909377,2.57745884,2136.1,2134.4,6.6730113]
[1770143909378,6.3604676,2135.5,2134.4,6.6730113]
[1770143909570,6.3604676,2136.0,2134.9,6.6730113]
[1770143909777,6.3604676,2136.3,2135.1,6.9074313]
[1770143909976,6.3604676,2137.0,2135.4,6.6730113]
[1770143910175,6.3604676,2137.0,2135.0,12.01188714]
[1770143910176,6.3604676,2137.0,2135.6,6.6730113]
[1770143910377,6.36457935,2137.0,2135.6,6.67678825]
[1770143910871,0.00411175,2137.0,2135.9,6.9073413]
[1770143911067,0.00411175,2137.0,2136.1,6.6730113]
[1770143911667,6.3604676,2138.9,2137.0,0.23421]
[1770143911868,6.3604676,2138.9,2137.2,6.6730113]
[1770143912071,6.3604676,2138.9,2137.2,6.9071913]
[1770143912276,6.3604676,2138.9,2137.4,6.6730113]
[1770143912474,6.3604676,2138.9,2137.6,6.6730113]
[1770143912779,6.365276,2138.9,2137.6,6.67894911]
[1770143913179,6.365276,2138.9,2137.6,0.00593781]
[1770143913579,6.3604676,2138.7,2137.6,0.00593781]
[1770143913977,6.3604676,2138.5,2137.6,0.00593781]
[1770143916576,0.0048084,2138.9,2137.6,0.00593781]
[1770143916775,0.0048084,2138.9,2137.6,6.67894911]
[1770143916975,6.3604676,2139.3,2137.8,6.9071313]
[1770143917176,6.3604676,2139.3,2138.0,6.6730113]
[1770143917477,6.3604676,2139.3,2138.0,11.6220113]
[1770143917677,6.3604676,2139.3,2138.1,6.6730113]
[1770143917879,6.3604676,2140.0,2138.1,6.6730113]
[1770143918078,6.36436555,2140.0,2138.1,6.6730113]
[1770143918778,6.3604676,2139.9,2138.5,6.6730113]
[1770143919082,0.00389795,2140.0,2138.8,6.6730113]
[1770143919282,0.00389795,2140.0,2138.8,6.9070213]
[1770143919580,0.23377,2141.1,2139.0,6.9070013]
[1770143919581,6.3604676,2140.7,2139.0,6.9070013]
[1770143919780,6.3604676,2140.7,2139.2,9.97789844]
[1770143919982,6.3604676,2140.7,2139.4,6.6730113]
[1770143920276,6.3604676,2140.7,2139.6,6.6730113]
[1770143920478,6.36566277,2140.7,2139.6,6.67826092]
[1770143920676,6.36566277,2140.7,2139.6,0.00524962]
[1770143920876,6.59948277,2140.7,2139.3,40.8]
[1770143921179,6.5943176,2140.3,2138.5,15.3700113]
[1770143921573,6.5943176,2140.3,2138.6,40.8]
[1770143922173,6.5943176,2140.3,2138.6,0.00587007]
[1770143922373,6.3604676,2140.3,2138.6,6.91291137]
[1770143922578,6.3604676,2140.3,2138.8,6.6730113]
[1770143922780,6.3604676,2140.3,2139.0,6.6730113]
[1770143923577,6.3604676,2140.3,2139.1,4.959]
[1770143923779,6.3604676,2140.3,2139.2,6.6730113]
[1770143924182,0.00519517,2140.7,2139.2,6.6730113]
[1770143924484,0.00519517,2140.7,2139.3,6.6730113]
[1770143924676,0.00519517,2140.7,2139.6,6.9069413]
[1770143925482,0.00519517,2140.7,2140.0,6.9068913]
[1770143925684,0.00519517,2140.7,2140.0,6.6730113]
[1770143925884,0.00519517,2140.7,2139.6,6.6730113]
[1770143926084,0.00519517,2140.7,2139.7,11.6400113]
[1770143926482,6.36566277,2140.7,2139.4,0.23395]
[1770143926681,6.36566277,2140.7,2139.5,11.6380113]
[1770143926882,6.36566277,2140.7,2139.6,6.6730113]
[1770143927284,6.36566277,2140.7,2139.5,4.965]
[1770143927583,6.3604676,2140.3,2138.9,40.8]
[1770143927778,6.5943276,2140.3,2138.8,6.6730113]
[1770143928284,6.3604676,2140.3,2138.9,40.8]
[1770143928481,6.3604676,2140.3,2138.9,47.4730113]
[1770143928683,6.3604676,2140.3,2139.0,6.6730113]
[1770143929086,6.3604676,2140.3,2139.2,6.6730113]
[1770143929288,6.36566277,2140.7,2139.3,6.9069713]
[1770143929587,6.36566277,2140.7,2139.5,6.6730113]
[1770143930084,6.36566277,2140.7,2139.4,5.20695]
[1770143930277,6.36566277,2140.7,2139.5,6.9069513]
[1770143931085,0.00519517,2140.7,2139.7,6.84995979]
[1770143932581,6.5576585,2140.7,2139.7,4.969]
[1770143932987,6.5576585,2140.7,2139.6,4.968]
[1770143933187,6.5576585,2140.7,2139.4,6.61604979]
[1770143933390,6.7914685,2140.7,2139.0,6.85003979]
[1770143933587,6.7914685,2140.7,2139.4,4.968]
[1770143933789,6.55246333,2140.2,2138.6,0.23990007]